bitfinex-derivatives/quotes_SOLF0:USTF0_20251201
["timestamp","ask_amount","ask_price","bid_price","bid_amount"]
[1764605958591,8.42,124.25,124.23,0.06108913]
[1764605958786,15.6649,124.25,124.23,0.06108913]
[1764605960398,8.42,124.24,124.23,0.06108913]
[1764605960990,15.6649,124.25,124.23,0.06108913]
[1764605962899,8.42,124.22,124.18,8.8]
[1764605963795,118.0,124.24,124.18,8.8]
[1764605964000,0.0616496,124.22,124.2,8.85298893]
[1764605964500,230.671,124.28,124.2,10.47298893]
[1764605964690,6.07130586,124.27,124.2,8.8]
[1764605964891,6.07130586,124.27,124.22,8.8]
[1764605964892,6.07130586,124.26,124.22,8.8]
[1764605965096,7.2436,124.27,124.22,8.8]
[1764605965594,0.05268366,124.26,124.24,8.8]
[1764605965794,0.05268366,124.26,124.25,80.52]
[1764605968595,0.05268366,124.26,124.25,71.72]
[1764605968997,0.05268366,124.26,124.25,71.64]
[1764605969503,0.05268366,124.26,124.25,80.49]
[1764605971294,8.97268366,124.26,124.25,71.64]
[1764605971605,7.245,124.25,124.24,71.6]
[1764605971807,121.6328,124.24,124.18,8.85]
[1764605972005,112.7142,124.23,124.19,80.45]
[1764605972202,7.2472,124.21,124.19,80.45]
[1764605972903,7.30253371,124.21,124.19,80.50373443]
[1764605973107,0.05533371,124.21,124.2,8.85]
[1764605973995,112.6889,124.26,124.2,8.85]
[1764605974999,0.05456756,124.24,124.22,0.0508165]
[1764605975200,0.05456756,124.24,124.22,8.9008165]
[1764605975802,7.246,124.23,124.22,8.9008165]
[1764605976508,7.246,124.23,124.22,0.0508165]
[1764605977113,7.246,124.23,124.22,71.5508165]
[1764605979606,16.166,124.23,124.22,56.8793165]
[1764605979803,7.246,124.23,124.22,16.2533165]
[1764605980204,16.166,124.23,124.22,16.2533165]
[1764605980611,16.166,124.23,124.17,8.85]
[1764605980612,8.92,124.21,124.17,8.85]
[1764605980799,121.71714267,124.2,124.14,8.85]
[1764605981005,0.06006064,124.18,124.15,71.47145201]
[1764605981404,0.06006064,124.18,124.15,80.32145201]
[1764605981608,7.2496,124.17,124.15,80.32145201]
[1764605981809,125.2496,124.17,124.16,8.85]
[1764605983009,0.06006064,124.18,124.16,8.85]
[1764605985013,0.06006064,124.18,124.15,8.90145201]
[1764605985209,0.06006064,124.18,124.17,71.38]
[1764605985414,0.06006064,124.18,124.17,80.23]
[1764605985714,0.06006064,124.18,124.17,71.38]
[1764605986311,7.30876064,124.18,124.17,71.38]
[1764605986808,7.30876064,124.18,124.17,80.23]
[1764605987406,7.30876064,124.18,124.15,0.05145201]
[1764605987600,0.06006064,124.18,124.15,0.05145201]
[1764605987905,0.06006064,124.18,124.17,8.85]
[1764605988508,7.30876064,124.18,124.16,80.19]
[1764605988910,0.06006064,124.18,124.16,80.19]
[1764605989212,0.06006064,124.18,124.16,8.85]
[1764605989414,7.30876064,124.18,124.17,71.34]
[1764605989716,8.98006064,124.18,124.15,0.05145201]
[1764605989911,6.07872274,124.17,124.15,0.05145201]
[1764605990218,0.06006064,124.18,124.15,8.90145201]
[1764605994419,7.30896064,124.18,124.15,8.90145201]
[1764605994619,8.98006064,124.18,124.16,71.28]
[1764605994916,0.06006064,124.18,124.16,71.28]
[1764605995221,7.2495,124.17,124.16,71.28]
[1764605996611,0.06006064,124.18,124.16,71.26]
[1764605997121,7.2499,124.16,124.15,8.90145201]
[1764605997312,7.2499,124.16,124.15,80.14145201]
[1764605998315,0.06006064,124.18,124.16,9.12]
[1764605999412,7.2494,124.17,124.16,9.12]
[1764605999612,0.06006064,124.18,124.16,9.12]
[1764606000411,7.2493,124.17,124.16,9.12]
[1764606000723,0.06006064,124.18,124.16,9.12]
[1764606001019,0.06006064,124.18,124.15,71.23145201]
[1764606001020,8.61,124.17,124.15,71.23145201]
[1764606001323,118.06006064,124.18,124.16,5.01]
[1764606001818,118.06006064,124.18,124.15,71.23145201]
[1764606001819,126.67006064,124.18,124.15,71.23145201]
[1764606002016,118.06006064,124.18,124.15,76.24145201]
[1764606002419,7.2493,124.17,124.16,5.01]
[1764606002921,118.06006064,124.18,124.16,5.01]
[1764606002922,0.06006064,124.18,124.16,5.01]
[1764606003119,112.6984,124.25,124.16,1.62]
[1764606003314,6.03104831,124.24,124.15,198.86860372]
[1764606003513,6.03104831,124.24,124.15,112.7822]
[1764606003816,121.328,124.23,124.16,71.16]
[1764606004026,0.05571433,124.21,124.18,0.06048584]
[1764606006926,7.244,124.27,124.19,7.2481]
[1764606007822,0.05496289,124.24,124.22,0.05524827]
[1764606008023,0.05496289,124.24,124.23,71.16]
[1764606008327,8.66496289,124.24,124.23,71.16]
[1764606008621,8.66496289,124.24,124.22,0.05524827]
[1764606008820,15.91066289,124.24,124.22,0.05524827]
[1764606009013,15.91066289,124.24,124.23,71.16]
[1764606009422,7.30066289,124.24,124.23,71.16]
[1764606010521,0.05496289,124.24,124.23,71.16]
[1764606011019,8.66496289,124.24,124.22,0.05524827]
[1764606011227,15.91046289,124.24,124.23,71.16]
[1764606011818,7.2466,124.22,124.14,112.7927]
[1764606012028,7.2466,124.22,124.15,71.16]
[1764606012521,126.61,124.23,124.13,112.8019]
[1764606012724,7.2472,124.21,124.14,71.14]
[1764606012922,0.05223874,124.19,124.16,0.05984491]
[1764606014229,8.66223874,124.19,124.16,0.05984491]
[1764606014429,8.66223874,124.19,124.17,71.14]
[1764606014729,121.3697,124.18,124.15,71.14]
[1764606015030,8.61,124.17,124.15,71.14]
[1764606015624,8.61,124.19,124.15,71.14]
[1764606015821,8.66163433,124.18,124.16,0.05118955]
[1764606016128,7.2506,124.15,124.05,224.31771801]
[1764606016422,7.2506,124.15,124.04,127.78400372]
[1764606016423,121.4088,124.14,124.04,112.8776]
[1764606016623,7.2514,124.14,124.05,71.14]
[1764606016935,7.2514,124.14,124.06,112.8669]
[1764606017123,0.0617941,124.11,124.09,7.31021512]
[1764606017423,0.05860126,124.11,124.1,71.14]
[1764606018028,0.05860126,124.11,124.09,7.31041512]
[1764606018230,0.05860126,124.11,124.1,71.16]
[1764606021233,7.2502,124.16,124.1,71.16]
[1764606021429,8.61,124.19,124.1,71.16]
[1764606022030,0.05074704,124.16,124.13,7.30451991]
[1764606023531,7.2478,124.2,124.13,112.85101991]
[1764606023932,144.66577858,124.28,124.13,112.85101991]
[1764606024237,144.66577858,124.28,124.11,14.90640372]
[1764606024238,8.61,124.26,124.17,127.66730372]
[1764606024425,8.61,124.26,124.18,71.16]
[1764606024626,8.66944241,124.23,124.21,0.05199661]
[1764606025339,8.61,124.22,124.21,0.05199661]
[1764606025633,8.61,124.22,124.21,71.21199661]
[1764606025830,7.30534241,124.23,124.21,71.21199661]
[1764606027841,15.54534241,124.23,124.21,71.21199661]
[1764606030148,0.05944241,124.23,124.21,71.21199661]
[1764606030344,8.29944241,124.23,124.21,71.21199661]
[1764606030843,0.05944241,124.23,124.21,71.21199661]
[1764606032342,7.30534241,124.23,124.21,71.21199661]
[1764606032742,0.05944241,124.23,124.21,71.21199661]
[1764606033444,8.29944241,124.23,124.22,71.14]
[1764606034050,15.54554241,124.23,124.22,71.14]
[1764606034240,8.24,124.22,124.21,71.14]
[1764606034650,15.4864,124.22,124.21,71.14]
[1764606034950,8.24,124.21,124.11,322.2756]
[1764606035144,0.05296902,124.17,124.15,0.05700073]
[1764606035651,7.2465,124.22,124.15,0.05700073]
[1764606036250,7.247,124.21,124.16,7.2498]
[1764606036546,8.24,124.21,124.17,71.14]
[1764606036750,8.29528043,124.2,124.18,0.05805855]
[1764606038053,15.54298043,124.2,124.18,0.05805855]
[1764606038354,0.05528043,124.2,124.18,0.05805855]
[1764606038548,8.29528043,124.2,124.18,0.05805855]
[1764606038738,0.05528043,124.2,124.18,0.05805855]
[1764606041950,0.05528043,124.2,124.18,7.30655855]
[1764606042338,0.05528043,124.2,124.18,0.05805855]
[1764606044446,0.05528043,124.2,124.19,71.12]
[1764606045251,7.2461,124.23,124.19,78.3681]
[1764606046158,0.05803847,124.22,124.19,78.3681]
[1764606049259,0.05803847,124.22,124.2,7.2471]
[1764606049655,0.05803847,124.22,124.21,7.247]
[1764606049856,7.2448,124.25,124.21,7.247]
[1764606050258,8.24,124.28,124.21,112.7302]
[1764606050455,8.24,124.28,124.19,112.7412]
[1764606050667,8.24,124.34,124.25,7.2441]
[1764606050859,8.24,124.34,124.22,112.7199]
[1764606050860,8.24,124.33,124.26,71.12]
[1764606051052,8.24,124.3,124.28,0.05295094]
[1764606051253,8.24,124.3,124.28,71.17295094]
[1764606053858,8.24,124.29,124.28,0.05295094]
[1764606054054,8.24,124.29,124.25,71.1]
[1764606054453,15.4826,124.29,124.25,71.1]
[1764606054761,8.24,124.28,124.25,71.1]
[1764606054967,8.2935381,124.28,124.25,71.15353771]
[1764606055154,15.5367381,124.28,124.25,71.15353771]
[1764606057157,15.7939,124.27,124.25,71.13353771]
[1764606057664,8.55,124.26,124.25,0.05353771]
[1764606057965,11.96931689,124.26,124.25,0.05353771]
[1764606059860,8.55,124.24,124.17,7.2492]
[1764606060056,8.55,124.23,124.2,71.08]
[1764606060453,8.55,124.24,124.2,71.08]
[1764606060858,0.06058117,124.23,124.21,0.05446156]
[1764606061459,116.09061689,124.28,124.21,0.05446156]
[1764606061663,7.2437,124.27,124.22,7.246]
[1764606061868,8.55,124.29,124.22,3.41931689]
[1764606062367,0.05274014,124.27,124.24,0.0584359]
[1764606062567,0.05274014,124.27,124.25,71.08]
[1764606063061,8.60274014,124.27,124.24,0.0552642]
[1764606063270,8.55,124.26,124.24,0.0552642]
[1764606063462,0.05274014,124.27,124.24,0.0552642]
[1764606063666,8.60274014,124.27,124.24,0.0552642]
[1764606064367,0.05274014,124.27,124.24,0.0552642]
[1764606064968,0.05274014,124.27,124.24,71.1152642]
[1764606067470,0.05274014,124.27,124.25,71.06]
[1764606068975,7.2442,124.26,124.24,0.0552642]
[1764606069168,8.60274014,124.27,124.24,0.0552642]
[1764606069574,121.1823,124.32,124.24,0.0552642]
[1764606069868,112.6685,124.28,124.25,71.06]
[1764606070062,8.55,124.26,124.25,38.4528]
[1764606070974,15.84847878,124.27,124.25,38.4528]
[1764606071172,7.29847878,124.27,124.25,38.4528]
[1764606071472,15.84847878,124.27,124.25,38.4528]
[1764606071972,7.29847878,124.27,124.25,47.2428]
[1764606072366,0.05477878,124.27,124.25,47.2428]
[1764606072562,0.05477878,124.27,124.26,8.79]
[1764606073674,0.05477878,124.27,124.26,79.83]
[1764606073976,0.05477878,124.27,124.26,8.79]
[1764606075583,8.60477878,124.27,124.25,71.04]
[1764606075779,0.05477878,124.27,124.25,71.04]
[1764606076275,0.05477878,124.27,124.25,79.83]
[1764606076475,0.05477878,124.27,124.25,71.04]
[1764606076682,0.05477878,124.27,124.25,79.83]
[1764606078075,15.84827878,124.27,124.25,71.04]
[1764606078275,7.29827878,124.27,124.25,71.04]
[1764606079880,7.29827878,124.27,124.24,0.05218029]
[1764606079881,15.7942,124.26,124.24,0.05218029]
[1764606080581,7.2442,124.26,124.24,0.05218029]
[1764606080781,7.2442,124.26,124.24,8.84218029]
[1764606082076,7.2442,124.26,124.24,0.05218029]
[1764606082279,7.2446,124.25,124.24,0.05218029]
[1764606082479,15.7946,124.25,124.24,0.05218029]
[1764606082678,8.55,124.24,124.19,8.79]
[1764606082984,126.55,124.24,124.19,8.79]
[1764606083774,0.05732082,124.23,124.2,8.84982298]
[1764606084583,7.2468,124.22,124.2,8.84982298]
[1764606084784,8.55,124.22,124.2,0.05982298]
[1764606085078,112.7231,124.22,124.14,8.79]
[1764606085284,121.2731,124.22,124.17,8.79]
[1764606085674,7.2475,124.21,124.17,8.79]
[1764606086078,0.05912528,124.2,124.18,8.84920097]
[1764606087680,7.30692528,124.2,124.18,0.05920097]
[1764606087886,15.33692528,124.2,124.18,0.05920097]
[1764606088078,7.30692528,124.2,124.18,8.42920097]
[1764606088278,0.05912528,124.2,124.18,8.42920097]
[1764606089086,0.05912528,124.2,124.19,3.42270792]
[1764606089281,7.2456,124.24,124.2,7.83]
[1764606090281,124.61430792,124.27,124.21,0.05809424]
[1764606090282,15.80902254,124.23,124.21,0.05809424]
[1764606090483,0.05322254,124.23,124.21,0.05809424]
[1764606090991,0.05322254,124.23,124.21,7.88809424]
[1764606091477,0.05322254,124.23,124.21,82.33080216]
[1764606091681,0.05322254,124.23,124.22,7.83]
[1764606092089,7.2441,124.26,124.22,15.0764]
[1764606092294,121.1742,124.29,124.23,7.83]
[1764606092595,124.57600792,124.31,124.24,7.83]
[1764606092787,5.83936857,124.3,124.24,7.83]
[1764606092987,5.83936857,124.3,124.25,3.42270792]
[1764606093291,0.05452837,124.29,124.27,7.83]
[1764606093493,8.56452837,124.29,124.27,71.02]
[1764606093683,7.2432,124.28,124.27,71.02]
[1764606094089,0.05452837,124.29,124.27,71.02]
[1764606094289,0.05452837,124.29,124.28,7.83]
[1764606094489,7.29682837,124.29,124.27,71.02]
[1764606094689,7.29682837,124.29,124.27,78.85]
[1764606095295,7.29682837,124.29,124.27,71.02]
[1764606096195,7.29682837,124.29,124.27,78.85]
[1764606096592,0.05452837,124.29,124.28,7.83]
[1764606098291,5.83400444,124.34,124.28,7.83]
[1764606098493,121.1183,124.35,124.29,7.83]
[1764606099384,7.2407,124.32,124.31,0.05721626]
[1764606100695,7.2407,124.32,124.31,7.88721626]
[1764606101285,7.2407,124.32,124.31,0.05721626]
[1764606102894,15.7507,124.32,124.31,0.05721626]
[1764606103090,8.51,124.3,124.26,78.81]
[1764606103293,8.51,124.3,124.27,7.83]
[1764606103488,7.241,124.32,124.27,7.83]
[1764606104093,8.56784494,124.31,124.28,71.04174665]
[1764606104492,8.56784494,124.31,124.26,7.2438]
[1764606104493,8.51,124.27,124.23,7.83]
[1764606105088,7.245,124.25,124.21,7.83]
[1764606105499,0.05802441,124.24,124.22,7.88719435]
[1764606106989,121.1763,124.29,124.23,7.83]
[1764606106990,7.2426,124.29,124.23,7.83]
[1764606108190,0.0584607,124.27,124.25,7.88387952]
[1764606108392,0.0584607,124.27,124.26,78.79]
[1764606109103,7.2415,124.31,124.27,7.83]
[1764606109895,15.7515,124.31,124.27,7.83]
[1764606110202,0.0498723,124.3,124.28,0.05409212]
[1764606110594,0.0498723,124.3,124.28,7.88409212]
[1764606112702,8.51,124.35,124.29,7.83]
[1764606113203,8.51,124.35,124.3,70.96]
[1764606113508,118.40189394,124.37,124.3,70.96]
[1764606113509,8.51,124.34,124.3,78.79]
[1764606113705,8.51,124.35,124.31,7.88402127]
[1764606113903,14.32169045,124.37,124.31,7.88402127]
[1764606114101,8.51,124.37,124.31,7.88402127]
[1764606114304,5.81169045,124.39,124.31,7.88402127]
[1764606114499,230.5526,124.41,124.31,7.88402127]
[1764606114500,133.7456,124.41,124.34,7.88998366]
[1764606114805,133.7456,124.41,124.36,7.83]
[1764606114990,133.7456,124.41,124.37,7.88104453]
[1764606115197,8.51,124.44,124.37,7.88104453]
[1764606115503,121.0341,124.44,124.37,7.88104453]
[1764606115704,8.51,124.44,124.37,7.88104453]
[1764606115997,5.80079048,124.45,124.37,7.88104453]
[1764606116307,8.51,124.45,124.4,7.89143839]
[1764606116604,8.51,124.44,124.41,70.94]
[1764606116805,121.0524,124.42,124.4,0.06143839]
[1764606117001,121.0524,124.42,124.41,33.2239]
[1764606117201,120.3585,124.39,124.36,70.94]
[1764606117499,120.3585,124.39,124.35,70.92]
[1764606117705,120.3585,124.39,124.33,70.92]
[1764606117706,120.3804,124.37,124.33,70.92]
[1764606118098,119.89099181,124.36,124.34,0.05260821]
[1764606118299,7.79,124.35,124.34,0.05260821]
[1764606120002,112.6319,124.32,124.22,8.15]
[1764606120210,7.2416,124.31,124.24,8.15]
[1764606120704,7.2416,124.31,124.26,8.15]
[1764606120904,119.8637,124.33,124.26,8.15]
[1764606121105,0.05662424,124.31,124.29,8.15]
[1764606121308,0.0571009,124.31,124.29,8.20202492]
[1764606121511,0.0571009,124.31,124.29,0.05202492]
[1764606122207,0.0571009,124.31,124.29,8.20202492]
[1764606122816,112.6089,124.35,124.29,8.20202492]
[1764606123011,112.5829,124.38,124.29,8.20202492]
[1764606123212,112.5829,124.38,124.29,8.15]
[1764606123913,0.0569457,124.35,124.33,8.15]
[1764606124118,112.5517,124.41,124.35,8.15]
[1764606124306,0.0523134,124.39,124.37,0.06147296]
[1764606124613,0.0523134,124.39,124.37,8.21147296]
[1764606126415,120.4112134,124.39,124.37,0.06147296]
[1764606126615,7.79,124.38,124.37,0.06147296]
[1764606127211,119.8581134,124.39,124.37,0.06147296]
[1764606127410,127.6481134,124.39,124.37,0.06147296]
[1764606128005,15.0792134,124.39,124.37,0.06147296]
[1764606128412,0.0523134,124.39,124.37,8.21147296]
[1764606128921,7.2334,124.45,124.37,9.81147296]
[1764606129130,7.2334,124.45,124.37,8.15]
[1764606129622,7.2334,124.45,124.38,8.15]
[1764606129924,7.2334,124.45,124.4,0.05890367]
[1764606129925,120.3193,124.44,124.4,0.05890367]
[1764606130230,7.2351,124.42,124.4,0.05890367]
[1764606130426,15.0251,124.42,124.4,0.05890367]
[1764606131124,7.79,124.41,124.4,0.05890367]
[1764606131423,7.2371,124.38,124.35,79.03]
[1764606131628,120.3596,124.39,124.32,8.15]
[1764606131922,7.238,124.37,124.33,70.86]
[1764606132130,7.238,124.37,124.34,8.15]
[1764606132428,7.29216318,124.37,124.34,8.21010005]
[1764606132627,15.0286,124.36,124.34,0.06010005]
[1764606133031,120.4012,124.35,124.29,70.86]
[1764606133327,120.4012,124.35,124.29,79.01]
[1764606133523,112.6156,124.34,124.29,8.15]
[1764606133729,15.0306,124.32,124.27,79.01]
[1764606133928,7.79,124.32,124.27,79.01]
[1764606134230,0.05740349,124.31,124.28,0.05335213]
[1764606135422,7.79,124.29,124.28,0.05335213]
[1764606136026,7.79,124.29,124.22,70.86]
[1764606136027,7.79,124.28,124.22,70.86]
[1764606136322,7.79,124.27,124.21,70.86]
[1764606136524,7.2444,124.26,124.21,79.01]
[1764606137019,0.0563605,124.25,124.22,0.05975482]
[1764606138624,0.0563605,124.25,124.23,9.84736]
[1764606140422,7.8463605,124.25,124.23,9.84736]
[1764606140620,7.45775802,124.34,124.23,17.99736]
[1764606140621,135.30541881,124.32,124.23,17.99736]
[1764606140824,120.4423,124.3,124.24,8.15]
[1764606141025,15.0321,124.3,124.24,8.15]
[1764606141829,0.06092066,124.28,124.26,0.0521291]
[1764606142432,0.06092066,124.28,124.26,8.2021291]
[1764606143034,0.06092066,124.28,124.27,79.03]
[1764606144336,0.06092066,124.28,124.26,70.9321291]
[1764606145234,230.6179,124.34,124.27,8.15]
[1764606145533,238.4079,124.34,124.27,8.15]
[1764606146439,7.8443197,124.32,124.29,0.05357355]
[1764606147342,0.0543197,124.32,124.29,7.94357355]
[1764606148035,0.0543197,124.32,124.3,70.86]
[1764606149339,119.9599197,124.32,124.29,0.05357355]
[1764606149536,7.27,124.31,124.29,0.05357355]
[1764606149937,7.2417,124.31,124.29,0.05357355]
[1764606150446,7.3243197,124.32,124.29,0.05357355]
[1764606151740,14.5113,124.31,124.29,0.05357355]
[1764606152139,0.0543197,124.32,124.29,7.68357355]
[1764606152339,7.2952197,124.32,124.29,7.68357355]
[1764606152537,7.2952197,124.32,124.29,0.05357355]
[1764606153743,7.2952197,124.32,124.29,7.68357355]
[1764606153948,0.0543197,124.32,124.29,7.68357355]
[1764606155047,7.3243197,124.32,124.29,0.05357355]
[1764606155737,0.0543197,124.32,124.29,7.68357355]
[1764606156040,0.0543197,124.32,124.29,0.05357355]
[1764606156239,0.0543197,124.32,124.29,7.68357355]
[1764606157442,0.0543197,124.32,124.3,7.63]
[1764606161356,118.0,124.34,124.31,7.63]
[1764606162463,118.0,124.34,124.32,7.63]
[1764606162644,118.0,124.34,124.33,78.47]
[1764606162850,7.2383,124.36,124.33,78.47]
[1764606163448,7.27,124.34,124.32,0.06155699]
[1764606163650,7.27,124.34,124.32,70.88155699]
[1764606163953,7.27,124.36,124.32,7.69155699]
[1764606164150,7.27,124.36,124.33,70.82]
[1764606164350,14.51,124.33,124.32,0.06155699]
[1764606165354,7.24,124.33,124.32,0.06155699]
[1764606165554,14.5091,124.35,124.32,0.06155699]
[1764606165755,7.2391,124.35,124.32,0.06155699]
[1764606166157,14.5091,124.35,124.32,0.06155699]
[1764606166556,14.5098,124.34,124.32,0.06155699]
[1764606167062,14.51,124.33,124.32,0.06155699]
[1764606169259,7.24,124.33,124.32,0.06155699]
[1764606170159,14.5094,124.35,124.32,0.06155699]
[1764606170369,7.2394,124.35,124.32,7.69155699]
[1764606171060,118.0,124.34,124.32,7.69155699]
[1764606173663,118.0,124.34,124.32,0.06155699]
[1764606173664,125.27,124.34,124.32,0.06155699]
[1764606173859,125.27,124.34,124.33,70.8]
[1764606175268,118.0,124.34,124.33,70.8]
[1764606175461,125.27,124.34,124.33,70.8]
[1764606175660,118.0,124.34,124.33,70.8]
[1764606175965,118.0,124.34,124.32,0.06155699]
[1764606175966,132.5094,124.34,124.32,0.06155699]
[1764606176166,132.5094,124.34,124.32,70.86155699]
[1764606177170,14.08,124.33,124.32,0.06155699]
[1764606177564,6.84,124.32,124.29,70.78]
[1764606178170,14.0806,124.32,124.29,70.78]
[1764606178468,0.05667203,124.32,124.3,6.97]
[1764606180469,0.05667203,124.32,124.31,70.78]
[1764606180766,0.05667203,124.32,124.29,7.03172641]
[1764606181068,0.05667203,124.32,124.31,70.78]
[1764606181268,6.89667203,124.32,124.31,70.78]
[1764606181464,0.05667203,124.32,124.31,77.75]
[1764606181668,127.025,124.41,124.32,6.97]
[1764606181969,7.2355,124.41,124.33,6.97]
[1764606182266,6.84,124.42,124.35,7.2384]
[1764606182466,6.84,124.42,124.35,14.2084]
[1764606182767,14.0748,124.42,124.37,7.02627257]
[1764606182962,7.2348,124.42,124.37,7.02627257]
[1764606183461,14.0748,124.42,124.37,7.02627257]
[1764606183857,6.84,124.41,124.37,7.02627257]
[1764606184062,6.84,124.4,124.38,70.78]
[1764606184861,7.2356,124.41,124.38,70.78]
[1764606185066,6.84,124.4,124.38,70.78]
[1764606185462,6.84,124.39,124.31,6.97]
[1764606185658,6.84,124.39,124.32,70.76]
[1764606186470,0.05930169,124.37,124.34,0.06097759]
[1764606186667,6.89930169,124.37,124.34,0.06097759]
[1764606187472,0.05930169,124.37,124.35,6.97]
[1764606187865,6.89930169,124.37,124.34,0.06097759]
[1764606188061,0.05930169,124.37,124.34,7.03097759]
[1764606188367,6.89930169,124.37,124.34,7.03097759]
[1764606189274,0.05930169,124.37,124.34,7.03097759]
[1764606190063,0.05930169,124.37,124.34,14.27027759]
[1764606190271,7.2352,124.42,124.35,6.97]
[1764606190574,14.0752,124.42,124.35,6.97]
[1764606190774,6.84,124.41,124.35,6.97]
[1764606190976,6.84,124.41,124.32,93.8677674]
[1764606190977,6.84,124.39,124.32,6.97]
[1764606191175,6.84,124.39,124.34,0.05357608]
[1764606191374,6.84,124.39,124.34,7.02357608]
[1764606191574,6.84,124.38,124.34,7.02357608]
[1764606191774,6.84,124.41,124.34,7.02357608]
[1764606192176,14.0758,124.41,124.34,7.02357608]
[1764606192379,6.84,124.41,124.34,7.02357608]
[1764606192871,6.84,124.44,124.36,6.97]
[1764606193068,6.84,124.44,124.39,0.05523766]
[1764606193472,6.84,124.42,124.39,0.05523766]
[1764606193870,6.84,124.42,124.39,70.79523766]
[1764606194678,6.84,124.42,124.39,0.05523766]
[1764606195174,6.84,124.39,124.31,6.97]
[1764606195379,6.84,124.38,124.31,6.97]
[1764606195571,112.5708,124.39,124.32,77.69]
[1764606195572,6.84,124.36,124.32,77.69]
[1764606196077,0.05188705,124.35,124.33,0.05734796]
[1764606196472,6.89188705,124.35,124.33,0.05734796]
[1764606197177,6.84,124.34,124.33,0.05734796]
[1764606198174,14.0805,124.33,124.29,70.72]
[1764606198374,6.84,124.33,124.29,70.72]
[1764606198579,6.84,124.33,124.29,77.69]
[1764606199069,6.84,124.31,124.25,6.97]
[1764606199274,6.84,124.28,124.24,6.97]
[1764606199489,6.84,124.28,124.27,0.05957784]
[1764606199681,6.84,124.26,124.23,9.84736]
[1764606200698,6.89818728,124.26,124.23,9.9006801]
[1764606201202,7.245,124.25,124.23,9.9006801]
[1764606201401,14.085,124.25,124.23,9.9006801]
[1764606203703,0.05818728,124.26,124.23,9.9006801]
[1764606204104,6.84,124.25,124.23,9.9006801]
[1764606205005,6.84,124.24,124.23,9.9006801]
[1764606205197,14.0849,124.25,124.23,9.9006801]
[1764606206695,7.2449,124.25,124.23,9.9006801]
[1764606206901,14.0849,124.25,124.23,9.9006801]
[1764606207803,13.5849,124.25,124.23,9.9006801]
[1764606208602,6.67,124.24,124.23,9.9006801]
[1764606208804,6.67,124.24,124.23,0.0533201]
[1764606209008,13.9165,124.22,124.18,77.58]
[1764606209900,0.06178606,124.21,124.19,0.06020292]
[1764606210502,6.67,124.2,124.19,0.06020292]
[1764606212002,6.67,124.18,124.12,103.32]
[1764606212202,6.67,124.18,124.13,70.74]
[1764606212610,6.67,124.15,124.13,70.74]
[1764606212806,6.67,124.15,124.12,96.48]
[1764606213010,6.72674252,124.15,124.12,96.53707987]
[1764606213205,6.72674252,124.15,124.12,0.05707987]
[1764606213906,119.4746,124.13,124.04,6.84]
[1764606214110,6.67,124.12,124.05,77.58]
[1764606214410,6.67,124.12,124.06,14.0956]
[1764606214612,6.67,124.12,124.06,6.84]
[1764606214803,6.67,124.15,124.06,6.84]
[1764606215003,0.05374364,124.12,124.1,6.84]
[1764606215504,0.05374364,124.12,124.11,77.6]
[1764606215703,6.67,124.18,124.11,77.6]
[1764606215917,6.67,124.17,124.11,6.84]
[1764606216111,6.67,124.17,124.11,77.58]
[1764606216516,6.67,124.14,124.11,70.74]
[1764606216805,6.72126109,124.14,124.11,0.05294981]
[1764606216998,6.67,124.13,124.11,0.05294981]
[1764606217204,13.9218,124.13,124.11,0.05294981]
[1764606217401,6.67,124.11,124.05,6.84]
[1764606217611,6.67,124.1,124.02,6.84]
[1764606217819,13.9247,124.08,124.04,6.84]